fUSD/lending_fUSD_20240624
["ID","MTS","AMOUNT","RATE_DAILY","PERIOD"]
[330300733,1719241843301,-183.01,0.000189,2]
[330300734,1719241843311,-183.01,0.000189,2]
[330300735,1719241843320,-183.01,0.000189,2]
[330300736,1719241843330,-183.01,0.000189,2]
[330300737,1719241843341,-183.01,0.000189,2]
[330300738,1719241843350,-160.42613154,0.00018903,2]
[330300739,1719241843362,-1464.610302,0.00018904,2]
[330300740,1719241843372,-35474.26864788,0.00019,2]
[330300741,1719241843381,-636.0,0.00019,2]
[330300742,1719241843391,-419.39834069,0.00019,2]
[330300743,1719241843400,-419.39834069,0.00019,2]
[330300744,1719241843409,-419.39834069,0.00019,2]
[330300745,1719241843419,-2000.0,0.00019037,2]
[330300746,1719241843428,-200.0,0.00019037,2]
[330300747,1719241843438,-338.03543811,0.00019037,2]
[330300748,1719241843447,-1206.55029512,0.00019037,2]
[330300749,1719241843456,-569.43,0.00019146,2]
[330300750,1719241843465,-500.0,0.00019178,2]
[330300751,1719241843474,-500.0,0.00019178,2]
[330300752,1719241843484,-279.83123905,0.00019178,2]
[330300753,1719241843493,-192.26815773,0.00019178,2]
[330300754,1719241843503,-500.0,0.00019178,2]
[330300755,1719241843512,-391.98636432,0.00019178,2]
[330300756,1719241843521,-500.0,0.00019178,2]
[330300757,1719241843531,-223.37345377,0.00019178,2]
[330300758,1719241843540,-594.99046847,0.00019178,2]
[330300759,1719241843550,-647.21732027,0.00019178,2]
[330300760,1719241843560,-367.03420752,0.00019178,2]
[330300761,1719241843569,-463.10380917,0.00019178,2]
[330300762,1719241843578,-250.0,0.00019178,2]
[330300763,1719241843588,-639.42,0.00019178,2]
[330300764,1719241843597,-150.0,0.00019178,2]
[330300765,1719241843607,-150.0,0.00019178,4]
[330300766,1719241843616,-151.04160615,0.00019178,4]
[330300767,1719241843626,-500.0,0.000192,7]
[330300768,1719241843635,-2000.0,0.00019228,2]
[330300769,1719241843645,-200.0,0.00019228,2]
[330300770,1719241843654,-183.01,0.00019248,2]
[330300771,1719241843664,-15136.78111208,0.00019258,2]
[330300772,1719241843674,-166.026,0.00019285,2]
[330300773,1719241843683,-359.0,0.00019285,2]
[330300774,1719241843692,-1655.0,0.00019285,2]
[330300775,1719241843702,-1272.0,0.00019285,2]
[330300776,1719241843712,-1830.0,0.00019285,2]
[330300777,1719241843722,-167.317,0.00019285,2]
[330300778,1719241843733,-460.693,0.00019285,2]
[330300779,1719241843742,-443.0,0.00019285,2]
[330300780,1719241843752,-681.088,0.00019285,2]
[330300781,1719241843761,-812.0,0.00019285,2]
[330300782,1719241843770,-153.554,0.00019285,2]
[330300783,1719241843780,-1304.0,0.00019285,2]
[330300784,1719241843790,-2412.0,0.00019285,2]
[330300785,1719241843799,-547.0,0.00019285,2]
[330300786,1719241843808,-3201.0,0.00019285,2]
[330300787,1719241843818,-1984.0,0.00019285,2]
[330300788,1719241843828,-570.654,0.00019366,2]
[330300789,1719241843838,-2000.0,0.0001942,2]
[330300790,1719241843848,-200.0,0.0001942,2]
[330300791,1719241843859,-250.77597332,0.00019427,2]
[330300792,1719241843869,-2000.0,0.00019614,2]
[330300793,1719241843879,-200.0,0.00019614,2]
[330300794,1719241843889,-338.03543811,0.00019679,2]
[330300795,1719241843898,-1668.40138,0.0001968,2]
[330300796,1719241843908,-1668.40139,0.0001968,2]
[330300797,1719241843918,-1668.40138,0.0001968,2]
[330300798,1719241843927,-1668.40139,0.0001968,2]
[330300799,1719241843938,-1668.40138,0.0001968,2]
[330300800,1719241843947,-1668.40138,0.0001968,2]
[330300801,1719241843957,-167.55,0.00019716,2]
[330300802,1719241843967,-1464.610302,0.00019726,2]
[330300803,1719241843977,-10668.35634026,0.00019893,2]
[330300804,1719241843986,-2768.91234217,0.00019893,2]
[330300805,1719241844000,-1000.0,0.000199,4]
[330300806,1719241844012,-1000.0,0.000199,4]
[330300807,1719241844021,-197.38,0.00019935,2]
[330300808,1719241844031,-15136.78111208,0.00019985,2]
[330300809,1719241844042,-183.01,0.0001999,2]
[330300810,1719241844052,-183.01,0.0001999,2]
[330300811,1719241844062,-292.63011668,0.0002,2]
[330300812,1719241844072,-3759.09670014,0.0002,2]
[330300813,1719241844083,-6653.0,0.0002,2]
[330300814,1719241844092,-8465.44574891,0.0002,2]
[330300815,1719241844102,-6025.64152776,0.0002,2]
[330300816,1719241844111,-187.96812151,0.0002,2]
[330300817,1719241844120,-866.64783494,0.0002,2]
[330300818,1719241844130,-326.82157281,0.0002,2]
[330300819,1719241844139,-218.09089062,0.0002,2]
[330300820,1719241844149,-155.0,0.0002,2]
[330300821,1719241844158,-1278.53356093,0.0002,2]
[330300822,1719241844168,-636.0,0.0002,2]
[330300823,1719241844177,-210.69223384,0.0002,2]
[330300824,1719241844186,-3644.43753106,0.0002,2]
[330300825,1719241844196,-750.35554818,0.0002,2]
[330300826,1719241844205,-750.35554818,0.0002,2]
[330300827,1719241844214,-750.35554818,0.0002,2]
[330300828,1719241844224,-750.35554818,0.0002,2]
[330300829,1719241844234,-750.35554818,0.0002,2]
[330300830,1719241844243,-750.35554818,0.0002,2]
[330300831,1719241844252,-750.35554818,0.0002,2]
[330300832,1719241844262,-750.35554818,0.0002,2]
[330300833,1719241844271,-750.35554818,0.0002,2]
[330300834,1719241844281,-750.35554818,0.0002,2]
[330300835,1719241844291,-750.35554818,0.0002,2]
[330300836,1719241844300,-750.35554818,0.0002,2]
[330300837,1719241844309,-750.35554818,0.0002,2]
[330300838,1719241844319,-750.35554818,0.0002,2]
[330300839,1719241844328,-750.35554818,0.0002,2]
[330300840,1719241844337,-750.35554818,0.0002,2]
[330300841,1719241844347,-750.35554818,0.0002,2]
[330300842,1719241844357,-750.35554818,0.0002,2]
[330300843,1719241844366,-750.35554818,0.0002,2]
[330300844,1719241844376,-750.35554818,0.0002,2]
[330300845,1719241844386,-750.35554818,0.0002,2]
[330300846,1719241844395,-750.35554818,0.0002,2]
[330300847,1719241844405,-750.35554818,0.0002,2]
[330300848,1719241844414,-750.35554818,0.0002,2]
[330300849,1719241844424,-750.35554818,0.0002,2]
[330300850,1719241844433,-750.35554818,0.0002,2]
[330300851,1719241844443,-750.35554818,0.0002,2]
[330300852,1719241844452,-750.35554818,0.0002,2]
[330300853,1719241844462,-750.35554818,0.0002,2]
[330300854,1719241844472,-750.35554818,0.0002,2]
[330300855,1719241844481,-750.35554818,0.0002,2]
[330300856,1719241844490,-750.35554818,0.0002,2]
[330300857,1719241844499,-750.35554818,0.0002,2]
[330300858,1719241844509,-750.35554818,0.0002,2]
[330300859,1719241844518,-750.35554818,0.0002,2]
[330300860,1719241844528,-750.35554818,0.0002,2]
[330300861,1719241844537,-750.35554818,0.0002,2]
[330300862,1719241844546,-750.35554818,0.0002,2]
[330300863,1719241844555,-750.35554818,0.0002,2]
[330300864,1719241844566,-750.35554818,0.0002,2]
[330300865,1719241844576,-750.35554818,0.0002,2]
[330300866,1719241844585,-750.35554818,0.0002,2]
[330300867,1719241844595,-750.35554818,0.0002,2]
[330300868,1719241844604,-750.35554818,0.0002,2]
[330300869,1719241844613,-750.35554818,0.0002,2]
[330300874,1719241844623,-750.35554818,0.0002,2]
[330300877,1719241844633,-750.35554818,0.0002,2]
[330300880,1719241844642,-750.35554818,0.0002,2]
[330300885,1719241844652,-750.35554818,0.0002,2]
[330300888,1719241844661,-750.35554818,0.0002,2]
[330300895,1719241844671,-750.35554818,0.0002,2]
[330300901,1719241844681,-750.35554818,0.0002,2]
[330300904,1719241844691,-750.35554818,0.0002,2]
[330300906,1719241844700,-750.35554818,0.0002,2]
[330300908,1719241844710,-750.35554818,0.0002,2]
[330300910,1719241844719,-750.35554818,0.0002,2]
[330300912,1719241844728,-750.35554818,0.0002,2]
[330300913,1719241844738,-750.35554818,0.0002,2]
[330300915,1719241844748,-750.35554818,0.0002,2]
[330300917,1719241844758,-750.35554818,0.0002,2]
[330300919,1719241844769,-750.35554818,0.0002,2]
[330300920,1719241844779,-750.35554818,0.0002,2]
[330300922,1719241844790,-750.35554818,0.0002,2]
[330300924,1719241844800,-750.35554818,0.0002,2]
[330300925,1719241844810,-750.35554818,0.0002,2]
[330300926,1719241844819,-750.35554818,0.0002,2]
[330300927,1719241844829,-750.35554818,0.0002,2]
[330300928,1719241844840,-750.35554818,0.0002,2]
[330300930,1719241844850,-750.35554818,0.0002,2]
[330300931,1719241844860,-750.35554818,0.0002,2]
[330300933,1719241844875,-750.35554818,0.0002,2]
[330300935,1719241844885,-750.35554818,0.0002,2]
[330300937,1719241844894,-750.35554818,0.0002,2]
[330300938,1719241844904,-750.35554818,0.0002,2]
[330300939,1719241844913,-750.35554818,0.0002,2]
[330300940,1719241844923,-750.35554818,0.0002,2]
[330300941,1719241844932,-750.35554818,0.0002,2]
[330300942,1719241844942,-750.35554818,0.0002,2]
[330300943,1719241844951,-750.35554818,0.0002,2]
[330300944,1719241844961,-750.35554818,0.0002,2]
[330300945,1719241844970,-151.66074487,0.0002,2]
[330300946,1719241844980,-621.36126964,0.0002,2]
[330300947,1719241844990,-621.36126964,0.0002,2]
[330300948,1719241845003,-621.36126964,0.0002,2]
[330300949,1719241845013,-621.36126964,0.0002,2]
[330300950,1719241845028,-621.36126964,0.0002,2]
[330300951,1719241845040,-621.36126964,0.0002,2]
[330300952,1719241845052,-621.36126964,0.0002,2]
[330300953,1719241845062,-621.36126964,0.0002,2]
[330300954,1719241845073,-621.36126964,0.0002,2]
[330300955,1719241845083,-621.36126964,0.0002,2]
[330300956,1719241845094,-621.36126964,0.0002,2]
[330300957,1719241845105,-621.36126964,0.0002,2]
[330300958,1719241845115,-621.36126964,0.0002,2]
[330300959,1719241845125,-621.36126964,0.0002,2]
[330300960,1719241845135,-621.36126964,0.0002,2]
[330300961,1719241845145,-621.36126964,0.0002,2]
[330300962,1719241845154,-621.36126964,0.0002,2]
[330300963,1719241845164,-621.36126964,0.0002,2]
[330300964,1719241845173,-621.36126964,0.0002,2]
[330300965,1719241845183,-1000.0,0.00020309,2]
[330300966,1719241845193,-338.03543811,0.00020321,2]
[330300967,1719241845203,-1206.55029512,0.00020321,2]
[330300968,1719241845213,-1464.610302,0.00020548,2]
[330300972,1719241845222,-157.773897,0.00020593,2]
[330300974,1719241845232,-570.654,0.00020602,2]
[330300975,1719241845241,-15136.78111208,0.00020711,2]
[330300976,1719241845251,-226.0,0.0002074,2]
[330300977,1719241845260,-373.0,0.0002074,2]
[330300978,1719241845269,-224.11749428,0.0002079,7]
[330300979,1719241845279,-183.01,0.0002079,2]
[330300980,1719241845289,-183.01,0.0002079,2]
[330300981,1719241845299,-183.01,0.0002079,2]
[330300982,1719241845309,-183.01,0.0002079,2]
[330300983,1719241845319,-183.01,0.0002079,2]
[330300984,1719241845328,-390658.270523,0.000208,3]
[330300985,1719241845338,-183.01,0.0002089,2]
[330300986,1719241845347,-183.01,0.0002089,2]
[330300987,1719241845357,-183.01,0.0002089,2]
[330300988,1719241845368,-10668.35634026,0.00020892,2]
[330300989,1719241845378,-2768.91234217,0.00020892,2]
[330300990,1719241845388,-151.0,0.000209,2]
[330300991,1719241845397,-151.0,0.000209,2]
[330300992,1719241845407,-151.0,0.000209,2]
[330300993,1719241845417,-151.0,0.000209,2]
[330300994,1719241845426,-151.0,0.000209,2]
[330300995,1719241845435,-151.0,0.000209,2]
[330300996,1719241845444,-151.0,0.000209,2]
[330300997,1719241845454,-289.417878,0.000209,2]
[330300998,1719241845463,-163.281504,0.000209,2]
[330300999,1719241845472,-289.417878,0.000209,2]
[330301000,1719241845481,-290.31751,0.000209,2]
[330301001,1719241845490,-151.0,0.000209,2]
[330301002,1719241845500,-151.0,0.000209,2]
[330301003,1719241845509,-163.281504,0.000209,2]
[330301004,1719241845518,-151.0,0.000209,2]
[330301005,1719241845527,-151.0,0.000209,2]
[330301006,1719241845537,-151.0,0.000209,2]
[330301007,1719241845546,-151.0,0.000209,2]
[330301008,1719241845555,-151.0,0.000209,2]
[330301009,1719241845565,-151.0,0.000209,2]
[330301010,1719241845738,-151.0,0.000209,2]
[330301011,1719241845748,-151.0,0.000209,2]
[330301012,1719241845758,-151.0,0.000209,2]
[330301013,1719241845767,-151.0,0.000209,2]
[330301014,1719241845776,-151.0,0.000209,2]
[330301015,1719241845785,-151.0,0.000209,2]
[330301016,1719241845795,-225339.148346,0.000209,3]
[330301017,1719241845804,-151.0,0.000209,2]
[330301018,1719241845813,-151.0,0.000209,2]
[330301019,1719241845822,-151.0,0.000209,2]
[330301020,1719241845831,-1179.731217,0.000209,2]
[330301021,1719241845840,-151.0,0.000209,2]
[330301022,1719241845849,-1179.731217,0.000209,2]
[330301023,1719241845858,-194.30392,0.000209,2]
[330301024,1719241845867,-151.0,0.000209,2]
[330301025,1719241845877,-379.152637,0.000209,2]
[330301026,1719241845887,-151.0,0.000209,2]
[330301027,1719241845896,-379.152637,0.000209,2]
[330301028,1719241845905,-151.0,0.000209,2]
[330301029,1719241845915,-151.0,0.000209,2]
[330301030,1719241845924,-151.0,0.000209,2]
[330301031,1719241845933,-151.0,0.000209,2]
[330301032,1719241845943,-151.0,0.000209,2]
[330301033,1719241845952,-151.0,0.000209,2]
[330301034,1719241845961,-151.0,0.000209,2]
[330301035,1719241845971,-151.0,0.000209,2]
[330301036,1719241845980,-156.569985,0.000209,2]
[330301037,1719241845990,-174.60559637,0.000209,2]
[330301038,1719241846003,-338.03543811,0.00020964,2]
[330301039,1719241846013,-183.01,0.0002099,2]
[330301040,1719241846023,-1250.0,0.00021,2]
[330301041,1719241846033,-636.0,0.00021,2]
[330301042,1719241846043,-165.72,0.00021055,2]
[330301043,1719241846052,-150.0,0.00021129,2]
[330301044,1719241846062,-150.0,0.00021129,2]
[330301045,1719241846071,-2336.33,0.0002137,2]
[330301046,1719241846082,-1464.610302,0.0002137,2]
[330301047,1719241846092,-569.43,0.0002141,2]
[330301048,1719241846101,-15136.78111208,0.00021437,2]
[330301049,1719241846110,-338.03543811,0.00021606,2]
[330301050,1719241846120,-1206.55029512,0.00021606,2]
[330301051,1719241846129,-154.78,0.00021644,2]
[330301052,1719241846139,-512.22,0.00021644,2]
[330301053,1719241846148,-307.04,0.00021665,2]
[330301054,1719241846157,-300.0,0.00021694,2]
[330301055,1719241846166,-5781.0,0.00021767,2]
[330301056,1719241846176,-5168.0,0.00021767,2]
[330301057,1719241846185,-1197.0,0.00021767,2]
[330301058,1719241846194,-1661.0,0.00021767,2]
[330301059,1719241846203,-1068.0,0.00021767,2]
[330301060,1719241846212,-11646.0,0.000218,5]
[330301061,1719241846221,-500.0,0.00021882,2]
[330301062,1719241846231,-500.0,0.00021891,2]
[330301063,1719241846240,-10668.35634026,0.00021891,2]
[330301064,1719241846249,-2768.91234217,0.00021891,2]
[330301065,1719241846259,-500.0,0.00021899,2]
[330301066,1719241846268,-5800.0,0.000219,2]
[330301067,1719241846277,-1000.0,0.000219,2]
[330301068,1719241846286,-183.01,0.00021907,2]
[330301069,1719241846295,-500.0,0.00021908,2]
[330301070,1719241846304,-5800.0,0.00021909,2]
[330301073,1719241846313,-7434.91996179,0.00021917,2]
[330301075,1719241846323,-4775.35668791,0.00021917,2]
[330301076,1719241846332,-5800.0,0.00021917,2]
[330301077,1719241846341,-500.0,0.00021917,2]
[330301078,1719241846350,-3202.59757198,0.00021917,2]
[330301079,1719241846361,-1094.33,0.00021918,2]
[330301080,1719241846370,-403.81,0.00021918,2]
[330301081,1719241846380,-1152.41,0.00021918,2]
[330301082,1719241846390,-150.0,0.00021918,2]
[330301083,1719241846399,-162.91947507,0.00021918,2]
[330301084,1719241846408,-151.0,0.00021982,2]
[330301085,1719241846417,-570.654,0.00021982,2]
[330301086,1719241846427,-370.06369904,0.00022,2]
[330301087,1719241846436,-636.0,0.00022,2]
[330301088,1719241846446,-173.0,0.00022,2]
[330301089,1719241846455,-166.66666666,0.00022032,2]
[330301090,1719241846464,-192.39192805,0.00022041,2]
[330301091,1719241846474,-2180.8473633,0.00022103,2]
[330301092,1719241846483,-203.49257012,0.00022139,2]
[330301093,1719241846493,-15136.78111208,0.00022164,2]
[330301094,1719241846502,-150.96869853,0.00022166,2]
[330301095,1719241846512,-166.66666666,0.00022172,2]
[330301096,1719241846522,-1464.610302,0.00022192,2]
[330301097,1719241846532,-1017.0,0.000222,2]
[330301098,1719241846541,-338.03543811,0.00022248,2]
[330301099,1719241846551,-179.16888396,0.00022273,2]
[330301100,1719241846560,-308.867,0.00022285,2]
[330301101,1719241846570,-1655.0,0.00022285,2]
[330301102,1719241846579,-1272.0,0.00022285,2]
[330301103,1719241846588,-1830.0,0.00022285,2]
[330301104,1719241846597,-166.0,0.00022285,2]
[330301105,1719241846607,-448.0,0.00022285,2]
[330301106,1719241846616,-443.0,0.00022285,2]
[330301107,1719241846626,-617.0,0.00022285,2]
[330301108,1719241846635,-812.0,0.00022285,2]
[330301109,1719241846644,-1304.0,0.00022285,2]
[330301110,1719241846654,-2221.823,0.00022285,2]
[330301111,1719241846663,-547.0,0.00022285,2]
[330301112,1719241846672,-3201.0,0.00022285,2]
[330301113,1719241846681,-1984.0,0.00022285,2]
[330301114,1719241846691,-478.76123279,0.00022299,2]
[330301115,1719241846700,-203.49257012,0.00022314,2]
[330301116,1719241846710,-6637.00516245,0.00022372,2]
[330301117,1719241846719,-226.0,0.0002239,2]
[330301118,1719241846729,-373.0,0.0002239,2]
[330301119,1719241846738,-150.65510339,0.00022404,2]
[330301120,1719241846748,-151.0,0.00022486,3]
[330301121,1719241846757,-341.78182888,0.00022527,2]
[330301122,1719241846766,-3687.4663789,0.00022528,2]
[330301123,1719241846775,-1111.96523654,0.00022533,2]
[330301124,1719241846784,-243.42373809,0.00022535,2]
[330301125,1719241846794,-29999.99,0.00022562,2]
[330301126,1719241846803,-10270.39,0.00022562,2]
[330301127,1719241846812,-19999.99,0.00022562,2]
[330301128,1719241846822,-4417.99,0.00022562,2]
[330301129,1719241846831,-1111.96523654,0.00022618,2]
[330301130,1719241846840,-50000.0,0.00022661,2]
[330301131,1719241846850,-478.76123279,0.00022692,2]
[330301132,1719241846860,-150.0,0.00022692,10]
[330301133,1719241846870,-150.96869853,0.00022757,2]
[330301134,1719241846879,-150.0,0.00022758,2]
[330301135,1719241846889,-150.0,0.00022758,2]
[330301136,1719241846899,-150.0,0.00022758,2]
[330301137,1719241846908,-150.0,0.00022758,2]
[330301138,1719241846917,-150.0,0.00022758,2]
[330301139,1719241846926,-202.50205,0.00022758,2]
[330301140,1719241846936,-150.0,0.00022769,2]
[330301141,1719241846946,-883.09874996,0.0002279,2]
[330301142,1719241846955,-150.0,0.00022799,10]
[330301143,1719241846965,-300.0,0.00022799,2]
[330301144,1719241846974,-2000.0,0.000228,2]
[330301145,1719241846983,-2000.0,0.000228,2]
[330301146,1719241846993,-2000.0,0.000228,2]
[330301147,1719241847003,-2000.0,0.000228,2]
[330301148,1719241847013,-2000.0,0.000228,2]
[330301149,1719241847026,-2000.0,0.000228,2]
[330301150,1719241847036,-2000.0,0.000228,2]
[330301151,1719241847045,-2000.0,0.000228,2]
[330301152,1719241847055,-2000.0,0.000228,2]
[330301153,1719241847065,-200.0,0.00022804,2]
[330301154,1719241847074,-500.0,0.00022804,2]
[330301155,1719241847083,-200.0,0.00022804,2]
[330301156,1719241847092,-478.76123279,0.00022831,2]
[330301157,1719241847102,-2471.66770981,0.00022872,2]
[330301158,1719241847111,-174.0174947,0.0002289,2]
[330301159,1719241847120,-169.7347945,0.0002289,2]
[330301160,1719241847130,-15136.78111208,0.0002289,2]
[330301161,1719241847139,-151.0,0.0002289,7]
[330301162,1719241847149,-151.0,0.0002289,7]
[330301163,1719241847159,-27235.64787198,0.0002289,7]
[330301164,1719241847168,-151.0,0.0002289,7]
[330301165,1719241847177,-360.435356,0.0002289,7]
[330301166,1719241847186,-151.0,0.0002289,7]
[330301167,1719241847196,-151.0,0.0002289,7]
[330301168,1719241847205,-151.0,0.0002289,7]
[330301169,1719241847214,-10668.35634026,0.0002289,2]
[330301170,1719241847224,-151.0,0.0002289,7]
[330301171,1719241847234,-151.0,0.0002289,7]
[330301172,1719241847243,-151.0,0.0002289,7]
[330301173,1719241847252,-151.0,0.0002289,7]
[330301174,1719241847262,-151.0,0.0002289,7]
[330301175,1719241847271,-151.0,0.0002289,7]
[330301176,1719241847282,-151.0,0.0002289,7]
[330301177,1719241847291,-151.0,0.0002289,7]
[330301178,1719241847300,-151.0,0.0002289,7]
[330301179,1719241847309,-151.0,0.0002289,7]
[330301180,1719241847318,-153.193925,0.0002289,7]
[330301181,1719241847328,-210.424725,0.0002289,2]
[330301182,1719241847338,-210.424725,0.0002289,2]
[330301183,1719241847347,-151.0,0.0002289,7]
[330301184,1719241847358,-151.0,0.0002289,7]
[330301185,1719241847368,-164.886547,0.0002289,7]
[330301186,1719241847377,-440.0,0.0002289,7]
[330301187,1719241847386,-176.54092728,0.0002289,2]
[330301188,1719241847396,-164.886547,0.0002289,7]
[330301189,1719241847405,-151.0,0.0002289,7]
[330301190,1719241847414,-440.0,0.0002289,7]
[330301191,1719241847424,-151.0,0.0002289,7]
[330301192,1719241847433,-151.0,0.0002289,7]
[330301193,1719241847443,-151.0,0.0002289,7]
[330301194,1719241847451,-151.0,0.0002289,7]
[330301195,1719241847461,-151.0,0.0002289,7]
[330301196,1719241847471,-160.209751,0.0002289,7]
[330301197,1719241847480,-151.0,0.0002289,7]
[330301198,1719241847501,-151.0,0.0002289,7]
[330301199,1719241847510,-151.0,0.0002289,7]
[330301200,1719241847519,-151.0,0.0002289,7]
[330301201,1719241847529,-151.0,0.0002289,7]
[330301202,1719241847541,-151.0,0.0002289,7]
[330301203,1719241847550,-681.20323358,0.0002289,2]
[330301204,1719241847559,-2735.27898875,0.0002289,2]
[330301205,1719241847570,-2768.91234217,0.0002289,2]
[330301206,1719241847580,-338.03543811,0.0002289,2]
[330301207,1719241847590,-1206.55029512,0.0002289,2]
[330301208,1719241847601,-2016.28833189,0.00022892,2]
[330301209,1719241847610,-2000.0,0.00022899,2]
[330301210,1719241847620,-2000.0,0.000229,2]
[330301211,1719241847630,-299.43,0.000229,2]
[330301212,1719241847640,-155.0,0.000229,2]
[330301213,1719241847649,-190.0,0.000229,5]
[330301214,1719241847659,-450.0,0.000229,5]
[330301215,1719241847668,-162.012259,0.000229,7]
[330301216,1719241847679,-151.0,0.000229,7]
[330301217,1719241847688,-162.012259,0.000229,7]
[330301218,1719241847697,-151.0,0.000229,7]
[330301219,1719241847706,-163.293502,0.000229,7]
[330301220,1719241847715,-151.0,0.000229,7]
[330301221,1719241847725,-163.293502,0.000229,7]
[330301222,1719241847734,-151.0,0.000229,7]
[330301223,1719241847743,-151.0,0.000229,7]
[330301224,1719241847752,-399.855362,0.000229,7]
[330301225,1719241847761,-151.0,0.000229,7]
[330301226,1719241847771,-151.0,0.000229,7]
[330301227,1719241847780,-151.0,0.000229,7]
[330301228,1719241847789,-505.504098,0.000229,7]
[330301229,1719241847798,-151.0,0.000229,7]
[330301230,1719241847807,-505.504098,0.000229,7]
[330301231,1719241847817,-999.46,0.000229,2]
[330301232,1719241847826,-922.23695498,0.00022916,2]
[330301233,1719241847835,-1076.66970872,0.00022919,2]
[330301234,1719241847844,-6637.00516245,0.00022929,2]
[330301235,1719241847853,-155.42303972,0.00022941,2]
[330301236,1719241847862,-192.39192805,0.00022947,2]
[330301237,1719241847872,-5915.0172695,0.00022984,2]
[330301238,1719241847882,-2292.7930478,0.00022984,2]
[330301239,1719241847891,-1108.6006397,0.00022984,2]
[330301240,1719241847900,-29765.8827523,0.00022984,2]
[330301241,1719241847909,-1394.9565115,0.00022984,2]
[330301242,1719241847918,-199.594286,0.00022984,7]
[330301243,1719241847928,-151.0,0.00022984,7]
[330301244,1719241847937,-199.594286,0.00022984,7]
[330301245,1719241847946,-151.0,0.00022984,7]
[330301246,1719241847955,-151.0,0.00022984,7]
[330301247,1719241847964,-151.0,0.00022984,7]
[330301248,1719241847974,-151.0,0.00022984,7]
[330301249,1719241847983,-233.454888,0.00022984,7]
[330301250,1719241847992,-151.0,0.00022984,7]
[330301251,1719241848007,-151.0,0.00022984,7]
[330301252,1719241848016,-233.454888,0.00022984,7]
[330301253,1719241848026,-151.0,0.00022984,7]
[330301254,1719241848035,-151.0,0.00022984,7]
[330301255,1719241848047,-151.0,0.00022984,7]
[330301256,1719241848056,-151.0,0.00022984,7]
[330301257,1719241848066,-151.0,0.00022984,7]
[330301258,1719241848076,-151.0,0.00022984,7]
[330301259,1719241848085,-662.88012018,0.00022987,2]
[330301260,1719241848095,-5911.08819518,0.00022987,2]
[330301261,1719241848104,-1181442.33861151,0.00022987,2]
[330301262,1719241848114,-210626.21822808,0.00022987,2]
[330301263,1719241848123,-50656.62444126,0.00022987,4]
[330301264,1719241848133,-187.131149,0.00022987,7]
[330301265,1719241848142,-151.0,0.00022987,7]
[330301266,1719241848151,-151.0,0.00022987,7]
[330301267,1719241848160,-151.0,0.00022987,7]
[330301268,1719241848170,-151.0,0.00022987,7]
[330301269,1719241848180,-151.0,0.00022987,7]
[330301270,1719241848189,-151.0,0.00022987,7]
[330301271,1719241848199,-151.0,0.00022987,7]
[330301272,1719241848208,-151.0,0.00022987,7]
[330301273,1719241848217,-151.0,0.00022987,7]
[330301274,1719241848227,-151.0,0.00022987,7]
[330301275,1719241848236,-289.417878,0.00022987,7]
[330301276,1719241848245,-163.281504,0.00022987,7]
[330301277,1719241848255,-151.825594,0.00022987,7]
[330301278,1719241848264,-151.0,0.00022987,7]
[330301279,1719241848273,-289.417878,0.00022987,7]